bitfinex-derivatives/quotes_ETHF0:USTF0_20260208
["timestamp","ask_amount","ask_price","bid_price","bid_amount"]
[1770555582011,6.32542982,2131.4,2129.9,5.59925986]
[1770555582212,6.32542982,2131.2,2130.0,9.07800509]
[1770555582414,6.32542982,2131.2,2130.1,9.07800509]
[1770555582615,36.32542982,2131.1,2130.3,0.59051466]
[1770555582810,6.32542982,2131.1,2130.3,0.59051466]
[1770555583017,6.32542982,2131.1,2130.0,4.18531764]
[1770555583018,30.0,2131.0,2130.4,0.50728859]
[1770555583608,0.00474481,2131.1,2130.4,0.50728859]
[1770555584010,6.36631265,2131.5,2130.4,0.50728859]
[1770555584212,30.0,2131.4,2130.4,0.50728859]
[1770555584512,36.36868506,2131.4,2130.5,0.50576213]
[1770555585020,36.37218251,2131.4,2130.5,0.50576213]
[1770555585317,6.36877445,2131.3,2130.5,0.50576213]
[1770555585615,4.73999233,2133.7,2131.3,3.766]
[1770555585816,4.73772068,2133.3,2131.3,3.77054332]
[1770555586121,4.73772068,2132.6,2130.7,3.77054332]
[1770555586317,4.73772068,2132.4,2130.9,3.77054332]
[1770555586715,4.74218942,2132.4,2130.9,3.77507879]
[1770555587618,4.88553244,2132.0,2130.2,4.18531764]
[1770555587818,4.88553244,2131.7,2130.1,4.37855548]
[1770555588014,4.82010109,2131.5,2130.1,4.37855548]
[1770555588722,4.82010109,2131.5,2130.1,4.38297056]
[1770555589427,4.82010109,2131.5,2130.1,0.00441508]
[1770555589724,4.82850682,2133.3,2130.6,4.37855548]
[1770555589921,0.23464,2132.8,2130.8,4.37855548]
[1770555590121,4.82850682,2132.6,2130.8,4.37855548]
[1770555590721,4.82850682,2132.6,2130.7,4.18531764]
[1770555590722,4.83420621,2132.6,2131.0,4.37855548]
[1770555591524,4.84652909,2132.5,2131.0,4.37855548]
[1770555592321,4.98943379,2132.6,2131.2,4.37855548]
[1770555593528,4.99083977,2134.6,2131.2,4.37855548]
[1770555593728,4.99083977,2134.2,2132.1,4.37855548]
[1770555593930,4.91453331,2134.1,2132.1,4.61326548]
[1770555594125,1.07888,2133.7,2131.0,11.33843665]
[1770555594328,0.23464,2132.8,2131.1,8.12567436]
[1770555594522,0.00405043,2132.8,2131.1,8.12961178]
[1770555594831,0.00405043,2132.8,2131.2,8.12567436]
[1770555595426,0.00405043,2132.8,2131.4,8.10558728]
[1770555595831,3.06039679,2133.7,2131.6,7.84077582]
[1770555596133,3.06039679,2133.7,2131.8,7.84077582]
[1770555596535,3.29493679,2133.7,2131.8,7.84077582]
[1770555596725,3.30021185,2133.7,2131.8,7.84077582]
[1770555596934,3.64686083,2133.5,2131.8,7.84077582]
[1770555597627,3.69569665,2133.2,2131.8,7.84077582]
[1770555597826,3.74732219,2135.0,2132.7,7.81161282]
[1770555598129,3.74732219,2134.1,2132.7,7.81161282]
[1770555598327,3.74732219,2133.9,2131.5,7.81161282]
[1770555598536,3.74732219,2133.6,2131.5,7.81161282]
[1770555598722,3.75302409,2133.6,2131.6,7.81161282]
[1770555598923,4.19667966,2133.4,2131.6,7.81161282]
[1770555599122,4.19667966,2133.1,2131.6,7.81161282]
[1770555599435,4.19667966,2132.9,2131.6,7.81161282]
[1770555599831,4.39281453,2132.7,2131.5,0.00482675]
[1770555601334,4.39281453,2132.7,2130.1,6.069]
[1770555601335,4.32584947,2132.5,2131.0,7.66326733]
[1770555601729,0.08165439,2132.8,2131.0,7.66326733]
[1770555601934,4.49752556,2133.1,2131.0,7.66326733]
[1770555602436,4.49752556,2133.1,2131.0,7.66751177]
[1770555605533,4.242536,2132.9,2131.0,7.66751177]
[1770555605733,0.23465,2132.7,2131.0,7.66751177]
[1770555606037,1.07884,2133.8,2131.0,7.66751177]
[1770555606038,4.15635395,2133.0,2131.2,9.0445346]
[1770555607033,3.85114272,2132.2,2130.7,9.0445346]
[1770555607435,3.85114272,2132.0,2130.7,9.0445346]
[1770555608135,3.85528379,2132.0,2130.7,9.04895678]
[1770555610341,0.00414107,2132.0,2130.7,9.04895678]
[1770555611538,11.55372004,2133.5,2130.7,9.04895678]
[1770555611539,6.90566051,2133.7,2131.5,9.0445346]
[1770555611740,4.25574609,2133.7,2131.7,9.0445346]
[1770555612035,4.02120609,2133.5,2131.9,9.0445346]
[1770555612237,4.25576609,2133.5,2131.9,9.0445346]
[1770555612539,3.9798759,2132.6,2131.3,9.0445346]
[1770555615343,3.67516474,2133.5,2131.9,9.28076966]
[1770555615538,3.90972474,2133.5,2131.9,9.28076966]
[1770555616441,3.90972474,2133.5,2130.9,8.35593066]
[1770555616442,8.79862298,2133.3,2131.7,9.28076966]
[1770555616644,6.068,2133.4,2131.0,9.28076966]
[1770555616645,0.23464,2132.8,2131.0,9.28076966]
[1770555616947,8.79862298,2132.7,2131.2,9.28076966]
[1770555617135,9.03327298,2132.7,2131.2,9.28076966]
[1770555617336,8.79862298,2132.0,2131.2,9.28076966]
[1770555617538,8.79862298,2131.8,2130.7,0.00442218]
[1770555617846,8.79862298,2131.8,2130.7,9.28519184]
[1770555618143,0.23474,2131.9,2130.7,9.28519184]
[1770555618144,8.79862298,2132.4,2130.9,9.28076966]
[1770555618843,6.90566051,2133.1,2131.0,6.27462907]
[1770555619049,8.79862298,2133.0,2131.6,9.28076966]
[1770555620049,8.79862298,2132.8,2131.6,9.28076966]
[1770555620643,8.79862298,2132.8,2130.7,0.00442218]
[1770555620644,8.79862298,2131.9,2130.7,9.28519184]
[1770555621341,8.79862298,2131.7,2130.7,0.00160891]
[1770555622544,8.79862298,2133.0,2130.9,9.28076966]
[1770555622744,8.79862298,2132.2,2130.9,9.28076966]
[1770555623147,9.03332298,2132.2,2130.9,9.28076966]
[1770555623745,8.79862298,2132.2,2130.9,9.28076966]
[1770555623950,8.79862298,2132.5,2131.1,9.28076966]
[1770555624346,8.79862298,2132.1,2130.7,0.00160891]
[1770555624543,8.79862298,2132.1,2130.7,9.28237857]
[1770555624946,8.79862298,2132.4,2130.7,9.28237857]
[1770555626647,9.03331298,2132.4,2130.7,9.28237857]
[1770555627355,8.79862298,2132.4,2130.9,9.28076966]
[1770555627650,8.79862298,2132.4,2130.7,4.17783215]
[1770555627651,0.00510462,2133.1,2131.8,9.28076966]
[1770555627848,8.79862298,2133.6,2132.0,9.28076966]
[1770555628152,9.03317298,2133.6,2132.0,9.28076966]
[1770555628757,9.03809961,2133.6,2132.0,9.28076966]
[1770555628957,8.79862298,2133.4,2132.0,9.28076966]
[1770555629152,9.03324298,2133.0,2131.6,9.28076966]
[1770555629349,8.79862298,2132.7,2131.3,9.28076966]
[1770555631154,0.23464,2132.8,2131.3,9.28076966]
[1770555631451,0.23464,2132.8,2130.9,5.56519377]
[1770555631452,8.80354961,2133.6,2132.3,9.28076966]
[1770555631649,8.80354961,2133.6,2132.3,9.28685678]
[1770555632459,8.79862298,2133.4,2132.3,0.00608712]
[1770555633347,8.79862298,2133.4,2132.3,9.28685678]
[1770555633857,8.79862298,2133.4,2132.3,0.00608712]
[1770555634057,8.79862298,2133.4,2132.3,9.28685678]
[1770555634955,6.90566051,2133.9,2132.3,9.28685678]
[1770555634956,0.23447,2134.3,2132.4,13.76999144]
[1770555635261,9.03309298,2134.3,2132.6,9.28076966]
[1770555635953,9.03787425,2134.3,2132.6,9.28076966]
[1770555636458,0.23925127,2134.3,2132.6,9.28076966]
[1770555636847,9.06515677,2134.3,2132.6,9.28076966]
[1770555637271,8.8259055,2134.1,2132.6,9.28076966]
[1770555639057,8.8259055,2133.9,2132.6,9.28076966]
[1770555639260,8.8259055,2133.7,2132.6,9.28076966]
[1770555642361,8.8259055,2133.4,2132.3,8.1521336]
[1770555645658,6.90566051,2134.0,2132.3,8.1521336]
[1770555645659,8.8259055,2133.7,2132.3,8.1521336]
[1770555646554,9.0604655,2133.5,2132.3,8.1521336]
[1770555647356,0.00478127,2134.3,2132.3,8.1521336]
[1770555647551,8.82590551,2134.3,2132.9,8.14604648]
[1770555648550,1e-08,2134.3,2132.9,8.14604648]
[1770555651262,8.26772004,2135.8,2133.0,8.14604648]
[1770555651461,8.8259055,2135.6,2134.0,8.14604648]
[1770555652366,8.82979071,2135.6,2134.0,8.15053871]
[1770555654565,9.0600955,2136.9,2134.7,0.23442]
[1770555654773,8.8259055,2136.7,2134.8,8.14604648]
[1770555655768,8.83197902,2136.7,2134.8,8.14604648]
[1770555656169,9.06618902,2136.7,2134.8,8.14604648]
[1770555657975,8.8259055,2136.5,2134.8,8.14604648]
[1770555658174,5.78477,2137.9,2134.2,22.09970324]
[1770555658175,8.8259055,2138.5,2136.6,8.14604648]
[1770555658365,8.8259055,2138.0,2136.0,8.14604648]
[1770555658567,0.23406,2138.1,2136.0,8.14604648]
[1770555658568,8.8259055,2137.8,2136.0,8.14604648]
[1770555659072,8.83119055,2137.8,2136.0,8.15062599]
[1770555659461,8.83119055,2137.8,2136.2,8.14604648]
[1770555660567,0.23396,2139.0,2136.4,8.14604648]
[1770555660766,8.8259055,2138.9,2136.7,8.14604648]
[1770555660961,8.8259055,2138.9,2136.8,8.14604648]
[1770555661163,0.08141655,2139.6,2138.2,8.14604648]
[1770555661368,8.8259055,2139.6,2137.5,8.14604648]
[1770555661564,0.23395,2139.1,2137.5,8.14604648]
[1770555661768,8.8259055,2138.4,2137.5,0.00542452]
[1770555662069,8.8259055,2138.4,2136.1,5.56519377]
[1770555662070,8.8259055,2138.0,2136.5,8.14604648]
[1770555662271,8.8259055,2137.7,2136.5,8.14604648]
[1770555662471,8.8259055,2137.7,2136.2,8.14604648]
[1770555662671,8.8259055,2137.4,2136.2,8.14604648]
[1770555662872,0.00368038,2137.4,2136.2,8.1518495]
[1770555664476,8.8259055,2140.6,2137.1,8.14604648]
[1770555664771,8.8259055,2139.8,2137.7,8.14604648]
[1770555665575,8.83085698,2139.8,2137.8,5.95844016]
[1770555665874,8.83085698,2139.8,2137.9,8.14604648]
[1770555666082,9.06472698,2139.8,2137.9,8.14604648]
[1770555667178,8.23570195,2139.7,2137.9,8.14604648]
[1770555667681,8.23570195,2141.6,2137.9,8.14604648]
[1770555667977,1.07466,2142.1,2137.7,0.00409541]
[1770555667978,8.23570195,2140.4,2138.4,8.53877694]
[1770555668175,8.46950195,2140.4,2138.4,8.53877694]
[1770555668878,8.47325364,2140.4,2138.4,8.53877694]
[1770555669575,8.23570195,2140.0,2138.4,8.53877694]
[1770555670177,8.23570195,2139.8,2138.4,8.53877694]
[1770555670878,8.46957195,2139.8,2138.4,8.53877694]
[1770555671873,8.23570195,2139.3,2137.8,8.53877694]
[1770555672676,13.074,2140.2,2137.7,0.00409541]
[1770555672677,7.91744679,2138.9,2137.7,0.00409541]
[1770555672877,7.92279451,2138.9,2137.7,0.00409541]
[1770555673075,7.91744679,2140.6,2138.3,8.23696089]
[1770555673481,7.91744679,2140.6,2138.4,6.11381026]
[1770555673680,8.15122679,2140.6,2138.5,8.00293089]
[1770555674075,8.15500454,2140.6,2138.6,6.00211376]
[1770555674276,8.15500454,2140.6,2138.7,8.00293089]
[1770555674977,8.15500454,2140.6,2138.9,8.00293089]
[1770555675281,7.92122454,2140.6,2138.9,8.00293089]
[1770555675481,0.00377775,2140.6,2139.0,5.97000204]
[1770555675679,0.00377775,2140.6,2139.1,8.00293089]
[1770555676179,0.23363,2142.1,2139.8,8.00293089]
[1770555676375,8.15107679,2142.1,2139.8,8.00293089]
[1770555676884,8.15107679,2142.1,2139.9,5.94341226]
[1770555677084,8.15107679,2142.1,2140.0,8.00293089]
[1770555677284,8.15658554,2142.1,2140.0,8.00864456]
[1770555677584,7.91744679,2141.8,2140.2,8.00293089]
[1770555679079,7.91744679,2141.4,2140.0,8.00864456]
[1770555679782,7.91744679,2141.4,2140.0,0.00571367]
[1770555679983,8.144,2142.0,2140.0,0.00571367]
[1770555679984,7.91744679,2141.2,2140.0,0.00571367]
[1770555680382,8.15116679,2141.2,2140.0,0.00571367]
[1770555680784,8.15116679,2141.2,2139.4,8.00293089]
[1770555680785,8.15118679,2141.0,2139.4,8.00293089]
[1770555680984,9.21872,2142.0,2138.1,8.00293089]
[1770555680985,7.91744679,2140.8,2138.1,8.00293089]
[1770555681190,7.91744679,2140.5,2138.1,8.00293089]
[1770555681487,7.91744679,2140.3,2138.1,8.00293089]
[1770555681678,7.91744679,2140.3,2138.1,8.00663852]
[1770555681884,7.92206442,2140.3,2138.1,8.00663852]
[1770555682079,7.92206442,2140.3,2138.4,8.00293089]
[1770555682488,7.92206442,2140.3,2138.6,8.00293089]
[1770555685391,8.15128679,2140.1,2138.6,8.00293089]
[1770555685791,7.91744679,2139.7,2138.2,8.00293089]
[1770555685992,8.15134679,2139.5,2138.2,8.00293089]
[1770555686188,7.91744679,2139.3,2138.2,8.00293089]
[1770555686392,7.91744679,2138.9,2138.1,0.00370763]
[1770555686590,8.15141679,2138.9,2138.1,0.00370763]
[1770555687094,7.91744679,2138.4,2136.9,8.00293089]
[1770555687486,7.91744679,2138.2,2136.9,8.00293089]
[1770555687683,7.91744679,2138.0,2136.1,8.00293089]
[1770555687991,7.91744679,2137.8,2136.1,8.00678189]
[1770555688786,0.00484198,2138.0,2136.1,8.00678189]
[1770555688787,7.91744679,2137.6,2136.1,8.00678189]
[1770555688986,7.91744679,2137.4,2136.1,8.00678189]
[1770555689187,8.15158679,2137.4,2136.1,0.003851]
[1770555689387,8.15159679,2137.2,2136.1,0.003851]
[1770555689792,7.91744679,2137.0,2136.1,0.003851]
[1770555690490,7.91744679,2137.0,2135.5,8.00293089]
[1770555690491,8.15162679,2137.0,2135.5,8.00293089]
[1770555690687,7.91744679,2138.8,2136.5,8.15167679]
[1770555690988,7.91744679,2139.4,2136.8,7.92396871]
[1770555691192,7.91744679,2139.1,2137.0,7.92396871]
[1770555691388,7.91744679,2139.4,2137.3,8.15809871]
[1770555691594,7.91744679,2139.4,2137.3,7.92396871]
[1770555691782,7.91744679,2139.4,2137.5,8.00293089]
[1770555691984,7.91744679,2139.2,2137.5,8.00293089]
[1770555692187,7.91744679,2139.0,2137.5,8.00853574]
[1770555692398,7.91744679,2138.7,2137.5,8.00853574]
[1770555692901,11.4098568,2138.6,2137.5,8.00853574]
[1770555693199,19.32730359,2138.6,2137.5,8.00853574]
[1770555693394,7.91744679,2138.5,2137.5,8.00853574]
[1770555693795,8.57863293,2140.7,2137.5,8.00853574]
[1770555693994,1.0748,2141.9,2138.2,2.77356057]
[1770555693995,8.57863293,2140.4,2138.2,2.77356057]
[1770555694205,8.57863293,2140.7,2138.8,2.77356057]
[1770555694493,8.57863293,2140.7,2139.1,0.74590904]
[1770555694900,8.58257878,2140.7,2139.3,0.67056566]
[1770555695100,0.00394585,2140.7,2139.3,0.67056566]
[1770555695795,0.00394585,2140.7,2139.4,5.93991732]
[1770555696000,0.00394585,2140.7,2139.5,5.65370638]
[1770555696302,0.00394585,2140.7,2139.6,0.86444839]
[1770555696698,0.00394585,2140.7,2139.7,0.79442731]
[1770555697309,8.68968177,2141.8,2139.9,0.79634892]
[1770555698191,8.48794813,2141.6,2139.9,0.79634892]
[1770555699099,8.48491948,2141.4,2139.9,0.79634892]
[1770555699298,8.48491948,2141.4,2139.2,0.5998776]
[1770555699694,8.48491948,2141.4,2139.3,0.65757748]
[1770555699895,8.50454924,2141.2,2139.3,0.65757748]
[1770555700091,8.50454924,2141.0,2139.3,0.65757748]
[1770555700295,8.50454924,2140.7,2139.1,0.00351827]
[1770555700696,0.23381,2140.4,2139.1,0.00351827]
[1770555701002,8.50708712,2140.3,2139.1,0.00351827]
[1770555701299,8.50708712,2140.1,2139.1,0.00351827]
[1770555701502,8.50708712,2140.1,2138.4,0.66983737]
[1770555701999,8.538209,2139.9,2137.9,0.66309822]
[1770555702502,8.538209,2139.9,2137.9,0.66906441]
[1770555702706,8.772069,2139.9,2137.9,0.66906441]
[1770555702893,8.54561947,2140.3,2137.9,0.66906441]
[1770555703093,8.54561947,2140.3,2138.5,0.71263641]
[1770555706604,8.54561947,2140.3,2138.2,4.79618427]
[1770555706605,8.54561947,2140.3,2138.7,0.92194691]
[1770555708009,8.77393285,2139.8,2138.4,0.9702259]
[1770555708199,8.54006285,2139.6,2138.4,0.9702259]
[1770555708902,8.77619303,2139.3,2138.0,1.01400285]
[1770555709106,8.54227303,2139.1,2137.9,0.00596619]
[1770555710002,8.57076349,2138.9,2137.9,0.00596619]
[1770555710598,8.57076349,2138.6,2137.9,0.00596619]
[1770555710794,8.57076349,2138.6,2137.1,1.05048171]
[1770555710999,8.56996814,2138.4,2137.1,1.05048171]
[1770555711797,8.57561829,2138.4,2137.1,1.05546893]
[1770555714309,9.09859834,2141.6,2138.4,0.12826628]
[1770555714505,1.07423,2143.0,2139.4,0.12826628]
[1770555714506,9.09859834,2141.3,2139.4,0.12826628]
[1770555714704,9.09859834,2141.3,2139.7,0.17075481]
[1770555714903,9.10059975,2142.0,2139.9,0.16675199]
[1770555715305,9.10412853,2142.0,2140.1,0.16675199]
[1770555715813,9.10412853,2142.0,2140.3,0.29809918]
[1770555716205,9.10412853,2142.0,2140.5,0.26330733]
[1770555716615,9.10412853,2142.0,2140.7,0.30356651]
[1770555718509,9.10412853,2142.0,2140.2,0.33056455]
[1770555718708,9.33775853,2142.0,2140.2,0.33056455]
[1770555719215,9.33775853,2142.0,2139.9,0.368673]
[1770555720712,9.11968033,2141.8,2139.9,0.368673]
[1770555721711,9.12170664,2141.6,2139.9,0.00328691]
[1770555722017,9.14218486,2141.1,2139.9,0.00328691]
[1770555722413,9.14218486,2141.1,2139.9,0.46465109]
[1770555722920,9.14218486,2141.1,2139.9,0.00328691]
[1770555724824,9.19704936,2140.7,2139.1,2.72517838]
[1770555725016,9.19704936,2140.7,2139.1,0.471883]
[1770555725518,9.43083936,2140.5,2138.8,3.23563935]
[1770555725724,9.19704936,2140.3,2138.9,0.51046097]
[1770555725912,9.2020097,2140.3,2138.9,0.51550919]
[1770555726519,9.23861309,2140.1,2138.9,0.00504822]
[1770555726715,9.47245309,2140.1,2138.9,0.00504822]
[1770555726911,9.47440418,2139.9,2138.9,0.00504822]
[1770555727317,9.47442418,2139.7,2138.3,0.59962931]
[1770555727718,9.23802007,2139.5,2138.0,0.64044717]
[1770555728420,9.23802007,2139.5,2138.0,0.64443488]
[1770555728626,9.47192007,2139.5,2138.0,0.00398771]
[1770555728825,9.19859048,2139.2,2138.0,0.00398771]
[1770555730023,9.19859048,2139.2,2138.0,0.67326276]
[1770555730619,9.19859048,2139.2,2138.2,0.70264935]
[1770555731423,9.26011841,2139.7,2138.2,0.70264935]
[1770555731622,9.26011841,2139.7,2138.3,0.73166487]
[1770555734929,9.26011841,2139.7,2138.5,0.76367324]
[1770555735131,9.26011841,2139.7,2138.6,0.76037664]
[1770555735330,9.32092338,2140.0,2138.8,0.76037664]
[1770555735724,9.32092338,2140.0,2138.5,3.5277155]
[1770555735923,9.32092338,2140.0,2138.6,0.83336889]
[1770555736321,9.29873455,2139.7,2138.3,3.57209316]
[1770555736520,9.29873455,2139.3,2138.0,0.00398771]
[1770555736730,9.53266455,2139.3,2138.0,0.00398771]
[1770555736926,9.30026686,2139.1,2138.0,0.00398771]
[1770555737132,0.23397,2138.9,2138.0,0.00398771]
[1770555737320,9.30026686,2138.8,2138.0,0.00398771]
[1770555737519,9.30624183,2138.8,2138.0,0.00398771]
[1770555739632,9.30624183,2138.8,2138.0,1.0175846]
[1770555739937,0.00597497,2138.8,2138.0,1.0175846]
[1770555740227,9.29792713,2138.8,2138.0,1.0175846]
[1770555741029,9.29792713,2138.8,2138.0,0.00398771]
[1770555742637,9.29792713,2138.8,2137.4,1.02523632]
[1770555742837,9.29792713,2138.8,2136.8,1.02922403]
[1770555742838,9.29237977,2138.3,2136.8,1.02922403]
[1770555743042,9.29237977,2138.0,2136.5,1.0266493]
[1770555743338,0.23409,2137.8,2136.2,1.0266493]
[1770555743543,9.29237977,2137.7,2136.2,1.0266493]
[1770555743740,9.29237977,2137.7,2136.2,1.03208978]
[1770555743941,9.52647977,2137.7,2136.2,0.00544048]
[1770555744344,4.685,2138.3,2136.2,0.00544048]
[1770555744345,9.25687778,2137.5,2136.2,0.00544048]
[1770555744948,9.25687778,2137.5,2135.6,1.12102027]
[1770555745240,9.25533191,2137.3,2135.6,1.12102027]
[1770555746038,9.26116957,2137.3,2135.6,1.12434351]
[1770555746745,9.26116957,2137.3,2135.8,1.03698577]
[1770555747837,9.26116957,2137.3,2135.6,0.00332324]
[1770555748342,9.54417355,2137.1,2135.6,0.00332324]
[1770555752045,9.4969683,2136.9,2135.6,0.00332324]
[1770555752543,9.2627783,2136.7,2135.6,0.00332324]
[1770555753139,9.26369781,2136.5,2134.8,1.28746388]
[1770555754043,9.26369781,2136.5,2134.8,1.29169563]
[1770555754443,9.49792781,2136.5,2134.8,1.29169563]
[1770555755245,9.27849744,2136.3,2134.8,1.29169563]
[1770555755650,9.51274744,2136.3,2134.8,1.29169563]
[1770555756150,9.4582399,2136.1,2134.8,0.00423175]
[1770555756551,9.4582399,2136.1,2134.8,1.04905952]
[1770555756853,9.4582399,2136.1,2135.0,1.04301798]
[1770555757546,9.4582399,2136.1,2134.8,0.00423175]
[1770555757751,9.4582399,2136.1,2134.8,1.06134696]
[1770555757954,9.6925199,2136.1,2134.8,0.00423175]
[1770555758353,9.6925199,2136.1,2134.8,1.01941482]
[1770555759151,9.6925199,2136.1,2134.8,0.00423175]
[1770555759754,4.685,2136.9,2134.8,0.00423175]
[1770555759755,9.48096346,2135.9,2134.8,0.00423175]
[1770555761556,9.48096346,2135.9,2134.8,1.07116798]
[1770555765458,9.48096346,2135.9,2134.8,0.00423175]
[1770555765660,9.71526346,2135.9,2134.8,0.00423175]
[1770555766057,9.71526346,2135.9,2134.8,1.09942574]
[1770555766561,9.48096346,2135.9,2134.8,1.09942574]
[1770555766963,9.48096346,2135.9,2131.7,10.274406]
[1770555766964,0.23448,2134.3,2131.7,10.274406]
[1770555767156,4.685,2134.1,2132.4,10.039656]
[1770555767355,2.77127178,2134.7,2132.4,10.039656]
[1770555767660,3.26586689,2134.5,2132.4,10.039656]
[1770555767856,3.27079727,2134.5,2132.4,10.04349476]
[1770555769959,0.2345,2134.1,2132.4,10.04349476]
[1770555770160,4.90301636,2133.9,2132.4,0.00383876]
[1770555770864,4.6646576,2133.5,2131.8,9.33834126]
[1770555771052,4.6646576,2133.5,2130.7,9.34026064]
[1770555771053,4.8992376,2133.3,2130.7,9.34026064]
[1770555771253,4.6646576,2133.1,2130.7,9.57513064]
[1770555771870,4.6646576,2133.1,2131.2,9.483698]
[1770555772265,4.37778288,2133.4,2131.4,9.483698]
[1770555772567,4.37778288,2133.4,2130.7,0.00502017]
[1770555772568,4.37778288,2133.7,2131.7,9.483698]
[1770555773155,4.37778288,2133.7,2131.9,9.483698]
[1770555773566,4.37778288,2133.7,2132.0,6.15702185]
[1770555773767,4.37778288,2133.7,2132.1,9.483698]
[1770555777874,4.4467973,2133.2,2131.1,9.44919079]
[1770555778167,41.56907675,2133.6,2131.1,9.44919079]
[1770555778168,4.4467973,2132.8,2131.1,9.44919079]
[1770555778468,4.45255013,2132.8,2131.1,9.44919079]
[1770555778869,0.00575283,2132.8,2131.3,9.44919079]
[1770555780375,4.3961005,2132.7,2131.5,9.47453919]
[1770555781474,4.3961005,2132.7,2131.2,9.47453919]
[1770555781768,4.3961005,2132.5,2131.2,9.47453919]
[1770555782672,4.4045144,2132.8,2131.2,9.47453919]
[1770555783669,0.125,2132.1,2131.2,9.47453919]
[1770555785370,0.24039283,2132.8,2131.2,9.47453919]
[1770555785770,0.00575283,2132.8,2131.2,9.70934919]
[1770555785975,0.00575283,2132.8,2131.4,11.29135504]
[1770555786278,4.19462789,2132.8,2131.4,11.29135504]
[1770555786979,0.00575283,2132.8,2131.4,11.29135504]
[1770555788874,0.00575283,2132.8,2131.5,6.02299066]
[1770555789079,0.00575283,2132.8,2131.6,11.29135504]
[1770555789779,4.11869158,2132.8,2131.6,11.29135504]
[1770555789981,0.00575283,2132.8,2131.6,11.29135504]
[1770555792489,4.14908405,2132.5,2131.4,11.29135504]
[1770555793185,4.16183229,2132.8,2131.4,11.29135504]
[1770555793784,0.00575283,2132.8,2131.4,11.29135504]
[1770555793986,0.00575283,2132.8,2131.4,11.52614504]
[1770555794488,0.00575283,2132.8,2130.0,10.79417588]
[1770555794489,3.80870621,2131.8,2130.0,10.79417588]
[1770555794691,4.04345621,2131.8,2130.0,10.79417588]
[1770555795586,4.04345621,2131.8,2130.0,10.79873788]
[1770555796387,3.3959768,2131.6,2130.0,10.79873788]
[1770555796576,3.3959768,2131.9,2130.2,10.79417588]
[1770555796779,2.77127178,2132.1,2130.2,10.79417588]
[1770555796980,6.16724858,2132.1,2130.4,10.79417588]
[1770555797491,6.16724858,2132.1,2130.4,11.02907588]
[1770555797784,3.3959768,2132.0,2130.4,11.02907588]
[1770555799286,3.54924637,2131.9,2130.4,11.02907588]
[1770555799887,3.55246952,2131.8,2130.4,10.79417588]
[1770555800090,3.55246952,2131.6,2130.4,10.79417588]
[1770555804790,2.77127178,2131.5,2130.4,10.79417588]
[1770555805186,6.3219431,2131.5,2130.4,10.79417588]
[1770555806101,2.77127178,2131.5,2130.4,10.79417588]
[1770555806298,2.77127178,2131.8,2130.4,10.79417588]
[1770555806793,6.31851539,2132.0,2130.4,10.79417588]
[1770555807094,3.54724361,2131.9,2130.4,10.79417588]
[1770555807296,6.31851539,2131.8,2130.4,10.79417588]
[1770555808093,3.51417351,2131.7,2130.4,10.79417588]
[1770555808298,3.51417351,2131.5,2130.4,10.79417588]
[1770555815400,2.77127178,2131.5,2130.1,10.79417588]
[1770555815593,6.27724189,2131.7,2130.1,11.02910588]
[1770555815796,3.50597011,2131.6,2130.1,11.02910588]
[1770555816004,3.50597011,2131.6,2130.1,10.79417588]
[1770555816901,3.87359138,2131.6,2130.1,10.79417588]
[1770555817604,3.87359138,2131.4,2130.1,10.79417588]
[1770555817794,3.87359138,2131.3,2130.1,10.79417588]
[1770555817993,3.8782875,2131.3,2130.1,10.79417588]
[1770555818997,3.61721074,2131.2,2130.1,10.79417588]
[1770555820202,3.60989589,2131.1,2130.1,10.79417588]
[1770555820403,6.38116767,2131.1,2130.1,10.79417588]
[1770555820611,2.77127178,2131.1,2130.1,10.79417588]
[1770555820910,6.40708477,2131.3,2130.1,10.79417588]
[1770555821105,2.79718888,2131.3,2130.1,10.79417588]
[1770555821902,0.00469612,2131.3,2130.1,10.79417588]
[1770555822404,2.79718888,2131.3,2130.1,10.79417588]
[1770555822604,2.79249276,2131.2,2130.1,10.79417588]
[1770555822909,2.79249276,2130.7,2129.8,10.5634526]
[1770555823110,11.44077938,2130.8,2129.8,10.5634526]
[1770555823111,2.79249276,2130.8,2129.8,10.5634526]
[1770555823706,2.79249276,2130.8,2129.8,10.56795162]
[1770555824309,2.79249276,2130.7,2129.8,10.56795162]
[1770555824909,14.23327214,2130.3,2129.6,10.5634526]
[1770555825606,14.23327214,2130.3,2129.4,10.5634526]
[1770555825807,14.23327214,2130.3,2129.4,10.56903928]
[1770555826608,14.23327214,2130.3,2129.4,0.00558668]
[1770555826816,11.44077938,2130.1,2129.4,0.00558668]
[1770555827616,11.44077938,2130.1,2129.2,10.5634526]
[1770555827617,11.44077938,2130.0,2129.2,10.44860128]
[1770555828314,11.44077938,2130.0,2128.5,10.5634526]
[1770555828515,11.44077938,2130.0,2128.5,10.56875061]
[1770555828722,14.23327214,2129.9,2128.5,10.56875061]
[1770555829018,11.44077938,2129.5,2128.5,10.56875061]
[1770555829225,11.44446611,2129.5,2128.5,10.56875061]
[1770555829618,14.23695887,2129.5,2128.5,10.56875061]
[1770555829825,11.44077938,2129.3,2128.5,0.00529801]
[1770555830030,11.44077938,2129.1,2128.5,0.00529801]
[1770555830427,0.00368673,2129.5,2128.5,10.56875061]
[1770555831426,11.44446611,2129.5,2128.5,10.56875061]
[1770555832228,14.23695887,2129.5,2128.5,0.00529801]
[1770555833120,11.44446611,2129.5,2128.5,0.00529801]
[1770555833928,14.23695887,2129.5,2128.5,0.00529801]
[1770555834321,11.44446611,2129.5,2128.5,0.00529801]
[1770555834828,11.44446611,2129.5,2128.5,10.56875061]
[1770555835722,0.00368673,2129.5,2128.5,10.56875061]
[1770555836117,11.44446611,2129.5,2128.1,10.5634526]
[1770555836323,11.44077938,2129.3,2128.1,10.5634526]
[1770555837332,11.44077938,2129.3,2128.1,10.56950484]
[1770555839531,30.376,2129.4,2128.1,10.56950484]
[1770555840126,41.81677938,2129.4,2128.1,10.56950484]
[1770555840327,11.44077938,2129.3,2128.1,10.56950484]
[1770555841421,11.44077938,2129.3,2128.1,0.00605224]
[1770555841625,11.44077938,2129.3,2126.9,2.78163583]
[1770555841626,11.44077938,2129.0,2126.9,10.5634526]
[1770555842031,11.67581938,2128.9,2126.9,10.5634526]
[1770555842235,14.23327214,2128.7,2126.9,10.5634526]
[1770555842427,11.44077938,2128.5,2126.9,10.5634526]
[1770555842632,11.44077938,2128.5,2126.9,10.56901851]
[1770555843436,11.44077938,2128.7,2127.2,10.5634526]
[1770555844633,11.67583938,2128.7,2127.2,10.5634526]
[1770555846533,10.68126947,2128.5,2127.2,10.5634526]
[1770555848846,30.386,2128.6,2127.2,10.5634526]
[1770555851841,41.06726947,2128.6,2127.2,10.5634526]
[1770555852335,10.68126947,2128.5,2127.2,10.5634526]
[1770555852740,30.386,2128.6,2127.2,10.5634526]
[1770555852940,41.38317521,2128.6,2127.2,10.5634526]
[1770555854143,2.77656483,2128.9,2127.5,11.10000421]
[1770555854340,10.99717521,2129.0,2127.5,11.10000421]
[1770555854645,10.99717521,2129.0,2127.5,11.33520421]
[1770555854843,10.99717521,2129.1,2127.7,11.10000421]